{"text_format":"1","workbook":"xlsx","n_sheets":2,"sheets":["الرئيسية","ورقة2"],"not_rendered":{"charts":0,"images":0,"macros":1,"external_links":0,"defined_names":1,"comments":0,"pivot_tables":0},"unopened":[],"bounds":{"document_bytes":16777216,"sheet_cells":100000,"rows_first":2000,"rows_last":500,"rows_between":2000,"halvings":0,"cell_chars":16384,"cell_head_chars":4096},"cells_cut":0,"cells_raw":0,"read":"whole","date_system":"1900"}

{"sheet":"الرئيسية","index":0,"n_rows":49,"n_cols":18,"rows_kept":49,"cut":false,"hidden":false,"merged":[[5,3,5,10],[0,3,4,12],[6,3,7,10]]}
[1,"صالح",null,"استاذي \nالان يتم اختيار الاسم من قائمه منسدله\nونفس الشي في الاسفل \nاريد منع التكرار \nاذا سبق تم اختيار الاسم \n\n​",null,null,null,null,null,null,null,null,null,null,null,null,null,"محمد"]
[null,{"$f":"IF(B1=0,\"\",B1)","v":"صالح"},null,null,null,null,null,null,null,null,null,null,null,null,null,null,null,"احمد"]
[null,"صالح",null,null,null,null,null,null,null,null,null,null,null,null,null,null,null,"هاني"]
[null,"صالح",null,null,null,null,null,null,null,null,null,null,null,null,null,null,null,"رضا"]
[2,"عبدالله",null,null,null,null,null,null,null,null,null,null,null,null,null,null,null,"رامي"]
[null,"عبدالله",null,null,null,null,null,null,null,null,null,null,null,null,null,null,null,"فيصل"]
[null,"عبدالله",null,"وكيف منع  قبول تكرار من قائمه منسدلة من غير  طريقة التنسيق الشرطي",null,null,null,null,null,null,null,null,null,null,null,null,null,"كمال"]
[null,"عبدالله",null,null,null,null,null,null,null,null,null,null,null,null,null,null,null,"عمر"]
[null,"عبدالله",null,null,null,null,null,null,null,null,null,null,null,null,null,null,null,"بكر"]
[3,"عبدالله",null,null,null,null,null,null,null,null,null,null,null,null,null,null,null,"وئل"]
[null,"عبدالله",null,null,null,null,null,null,null,null,null,null,null,null,null,null,null,"مصطفى"]
[null,"عبدالله",null,null,null,null,null,null,null,null,null,null,null,null,null,null,null,"ماهر"]
[null,"عبدالله",null,null,null,null,null,null,null,null,null,null,null,null,null,null,null,"سعيد"]
[null,"عبدالله",null,null,null,null,null,null,null,null,null,null,null,null,null,null,null,"صالح"]
[4,"صالح",null,null,null,null,null,null,null,null,null,null,null,null,null,null,null,"عبدالله"]
[null,"صالح",null,null,null,null,null,null,null,null,null,null,null,null,null,null,null,"إبراهيم"]
[null,"صالح",null,null,null,null,null,null,null,null,null,null,null,null,null,null,null,"ماجد"]
[null,"صالح",null,null,null,null,null,null,null,null,null,null,null,null,null,null,null,"خالد"]
[null,"صالح",null,null,null,null,null,null,null,null,null,null,null,null,null,null,null,"فهد"]
[5,null,null,null,null,null,null,null,null,null,null,null,null,null,null,null,null,"محمود"]
[null,""]
[null,""]
[null,""]
[null,""]
[6]
[null,{"$f":"IF(B25=0,\"\",B25)","v":""}]
[null,""]
[null,""]
[null,""]
[7,"عبدالله"]
[null,"عبدالله"]
[null,"عبدالله"]
[null,"عبدالله"]
[null,"عبدالله"]
[8]
[null,""]
[null,""]
[null,""]
[null,""]
[9]
[null,""]
[null,""]
[null,""]
[null,""]
[10]
[null,""]
[null,""]
[null,""]
[null,""]

{"sheet":"ورقة2","index":1,"n_rows":0,"n_cols":0,"rows_kept":0,"cut":false,"hidden":false,"merged":[]}